fUST/lending_fUST_20260130
["ID","MTS","AMOUNT","RATE_DAILY","PERIOD"]
[403997033,1769704855900,-335.0,0.00054431,30]
[403997035,1769704855995,-335.0,0.00054431,30]
[403997037,1769704856086,-335.0,0.00054431,30]
[403997040,1769704856174,-335.0,0.00054431,30]
[403997041,1769704856263,-335.0,0.00054431,30]
[403997043,1769704856352,-335.0,0.00054431,30]
[403997045,1769704856441,-335.0,0.00054431,30]
[403997047,1769704856528,-335.0,0.00054431,30]
[403997049,1769704856619,-335.0,0.00054431,30]
[403997051,1769704856709,-335.0,0.00054431,30]
[403997053,1769704856804,-335.0,0.00054431,30]
[403997056,1769704856899,-335.0,0.00054431,30]
[403997057,1769704856990,-335.0,0.00054431,30]
[403997059,1769704857081,-335.0,0.00054431,30]
[403997061,1769704857174,-335.0,0.00054431,30]
[403997064,1769704857267,-335.0,0.00054431,30]
[403997065,1769704857358,-335.0,0.00054431,30]
[403997067,1769704857452,-335.0,0.00054431,30]
[403997069,1769704857547,-335.0,0.00054431,30]
[403997071,1769704857638,-335.0,0.00054431,30]
[403997073,1769704857729,-335.0,0.00054431,30]
[403997075,1769704857823,-335.0,0.00054431,30]
[403997077,1769704857913,-335.0,0.00054431,30]
[403997079,1769704858003,-335.0,0.00054431,30]
[403997081,1769704858091,-335.0,0.00054431,30]
[403997083,1769704858178,-335.0,0.00054431,30]
[403997085,1769704858269,-335.0,0.00054431,30]
[403997087,1769704858362,-335.0,0.00054431,30]
[403997089,1769704858452,-335.0,0.00054431,30]
[403997091,1769704858544,-335.0,0.00054431,30]
[403997093,1769704858635,-335.0,0.00054431,30]
[403997095,1769704858730,-335.0,0.00054431,30]
[403997097,1769704858828,-335.0,0.00054431,30]
[403997099,1769704858923,-335.0,0.00054431,30]
[403997102,1769704859015,-335.0,0.00054431,30]
[403997103,1769704859107,-335.0,0.00054431,30]
[403997105,1769704859203,-335.0,0.00054431,30]
[403997107,1769704859297,-335.0,0.00054431,30]
[403997110,1769704859391,-335.0,0.00054431,30]
[403997111,1769704859487,-335.0,0.00054431,30]
[403997115,1769704859665,-335.0,0.00054431,30]
[403997116,1769704859756,-335.0,0.00054431,30]
[403997118,1769704859851,-335.0,0.00054431,30]
[403997120,1769704859939,-335.0,0.00054431,30]
[403997122,1769704860030,-335.0,0.00054431,30]
[403997124,1769704860128,-335.0,0.00054431,30]
[403997126,1769704860222,-335.0,0.00054431,30]
[403997128,1769704860317,-335.0,0.00054431,30]
[403997131,1769704860409,-335.0,0.00054431,30]
[403997132,1769704860499,-335.0,0.00054431,30]
[403997135,1769704860588,-335.0,0.00054431,30]
[403997136,1769704860680,-335.0,0.00054431,30]
[403997138,1769704860771,-335.0,0.00054431,30]
[403997140,1769704860862,-335.0,0.00054431,30]
[403997143,1769704860954,-335.0,0.00054431,30]
[403997144,1769704861046,-335.0,0.00054431,30]
[403997147,1769704861138,-335.0,0.00054431,30]
[403997148,1769704861234,-335.0,0.00054431,30]
[403997151,1769704861322,-335.0,0.00054431,30]
[403997152,1769704861415,-335.0,0.00054431,30]
[403997154,1769704861508,-335.0,0.00054431,30]
[403997156,1769704861596,-335.0,0.00054431,30]
[403997158,1769704861685,-335.0,0.00054431,30]
[403997161,1769704861775,-335.0,0.00054431,30]
[403997162,1769704861862,-335.0,0.00054431,30]
[403997164,1769704861949,-335.0,0.00054431,30]
[403997166,1769704862031,-335.0,0.00054431,30]
[403997167,1769704862120,-335.0,0.00054431,30]
[403997168,1769704862203,-335.0,0.00054431,30]
[403997169,1769704862279,-335.0,0.00054431,30]
[403997172,1769704862369,-335.0,0.00054431,30]
[403997173,1769704862456,-335.0,0.00054431,30]
[403997175,1769704862544,-335.0,0.00054431,30]
[403997177,1769704862632,-335.0,0.00054431,30]
[403997180,1769704862729,-335.0,0.00054431,30]
[403997181,1769704862821,-335.0,0.00054431,30]
[403997183,1769704862913,-335.0,0.00054431,30]
[403997185,1769704863004,-335.0,0.00054431,30]
[403997188,1769704863100,-195.43253224,0.00054431,30]
[403997189,1769704863194,-395.72,0.00054431,30]
[403997191,1769704863286,-156.587,0.00054431,30]
[403997193,1769704863377,-213.93175185,0.00054431,30]
[403997195,1769704863469,-156.587,0.00054431,30]
[403997198,1769704863563,-151.0,0.00054431,30]
[403997200,1769704863654,-1888.0,0.00054431,30]
[403997202,1769704863753,-429.318,0.00054431,30]
[403997203,1769704863847,-2074.0,0.00054431,30]
[403997205,1769704863940,-193.3919763,0.00054431,30]
[403997207,1769704864033,-1000.0,0.00054519,120]
[403997209,1769704864124,-151.0,0.00054519,120]
[403997211,1769704864217,-250.0,0.00054519,120]
[403997214,1769704864314,-151.0,0.00054519,120]
[403997215,1769704864406,-151.0,0.00054519,120]
[403997217,1769704864503,-157.47590888,0.00054519,120]
[403997219,1769704864594,-414.0,0.00054519,120]
[403997221,1769704864687,-2000.0,0.00054519,120]
[403997223,1769704864781,-500.0,0.00054519,120]
[403997225,1769704864868,-500.0,0.0005452,30]
[403997227,1769704864954,-582.577,0.00054765,120]
[403997229,1769704865046,-218.0,0.000548,120]
[403997231,1769704865137,-159.63323867,0.000549,120]
[403997233,1769704865228,-2000.0,0.000549,120]
[403997235,1769704865317,-48628.02970851,0.000549,120]
[403997237,1769704865409,-1000.0,0.00055,120]
[403997239,1769704865506,-2498.98994472,0.00055,120]
[403997241,1769704865595,-153.70715206,0.00055,120]
[403997243,1769704865687,-400.0,0.00055,120]
[403997245,1769704865778,-212.0,0.0005509,120]
[403997247,1769704865872,-218.0,0.000552,120]
[403997249,1769704865965,-200.0,0.000555,120]
[403997251,1769704866060,-20750.92172991,0.000555,120]
[403997253,1769704866163,-218.0,0.000556,120]
[403997255,1769704866254,-1662.7924314,0.0005566,120]
[403997258,1769704866347,-2000.0,0.000559,120]
[403997259,1769704866441,-400.0,0.00056,120]
[403997262,1769704866532,-1000.0,0.00056,120]
[403997263,1769704866621,-1000.0,0.00056,120]
[403997265,1769704866710,-1000.0,0.00056,120]
[403997267,1769704866805,-218.0,0.00056,120]
[403997269,1769704866895,-212.0,0.000564,120]
[403997272,1769704867082,-218.0,0.000564,120]
[403997275,1769704867172,-218.0,0.000569,120]
[403997276,1769704867265,-1000.0,0.00057,120]
[403997279,1769704867356,-1000.0,0.00057,120]
[403997281,1769704867448,-1928.8022364,0.00057,120]
[403997282,1769704867543,-400.0,0.00057,120]
[403997285,1769704867634,-500.0,0.00057246,120]
[403997287,1769704867733,-218.0,0.000573,120]
[403997289,1769704867913,1596006.29601004,0.00057524,120]
[403998604,1769704982773,300.0,0.00010278,2]
[403999319,1769705042831,300.0,0.00010278,2]
[403999358,1769705094507,300.0,9.585e-05,2]
[403999361,1769705101878,294.0,0.00010278,2]
[403999362,1769705102968,300.0,0.00010278,2]
[403999363,1769705110911,265.0,0.00010278,2]
[403999372,1769705162962,300.0,0.00010278,2]
[403999386,1769705279524,250.47,0.000102,2]
[403999387,1769705280800,353.59,0.000102,2]
[403999390,1769705282921,300.0,0.00010278,2]
[403999454,1769705404859,564.0,0.00010279,2]
[403999502,1769705432460,-8587.51896337,0.00010279,2]
[403999504,1769705432472,-629.81076165,0.00010279,2]
[403999550,1769705438412,-1548.83918175,0.00010279,2]
[403999551,1769705438467,-114349.16942946,0.00010279,2]
[403999552,1769705438478,-247.0,0.00010378,20]
[403999553,1769705438487,-500.0,0.00010378,2]
[403999554,1769705438497,-599.64643024,0.00010379,2]
[403999555,1769705438506,-75041.8234731,0.0001038,2]
[403999556,1769705438515,-3581.6630917,0.00010546,2]
[403999557,1769705438524,-300.0,0.00010587,2]
[403999558,1769705438533,-300.0,0.00010587,2]
[403999559,1769705438543,-300.0,0.00010587,2]
[403999560,1769705438552,-300.0,0.00010587,2]
[403999561,1769705438562,-300.0,0.00010587,2]
[403999562,1769705438571,-300.0,0.00010587,2]
[403999563,1769705438580,-300.0,0.00010587,2]
[403999564,1769705438590,-300.0,0.00010587,2]
[403999565,1769705438599,-300.0,0.00010587,2]
[403999566,1769705438609,-300.0,0.00010587,2]
[403999567,1769705438618,-300.0,0.00010587,2]
[403999568,1769705438628,-300.0,0.00010587,2]
[403999569,1769705438638,-300.0,0.00010587,2]
[403999570,1769705438648,-300.0,0.00010587,2]
[403999571,1769705438663,-300.0,0.00010587,2]
[403999572,1769705438672,-50000.0,0.00010587,2]
[403999573,1769705438682,-588.68,0.000108,2]
[403999574,1769705438691,-171.027379,0.00010828,2]
[403999575,1769705438700,-151.0,0.00011,2]
[403999576,1769705438709,-31616.688186,0.00011329,2]
[403999577,1769705438718,-2548.06331996,0.00011352,2]
[403999578,1769705438727,-2788.34325638,0.00011417,2]
[403999579,1769705438737,-171.027379,0.00011484,2]
[403999580,1769705438746,-30020.4766597,0.00011598,2]
[403999581,1769705438756,-600.0,0.00011727,2]
[403999582,1769705438766,-151.0,0.000123,2]
[403999583,1769705438775,-540.67,0.00012329,2]
[403999584,1769705438784,-31616.688186,0.00012501,2]
[403999585,1769705438794,-4074.72074097,0.00012757,2]
[403999586,1769705438803,-3349.41143246,0.0001283,2]
[403999587,1769705438812,-720.0,0.000129,2]
[403999588,1769705438822,-500.0,0.00013273,2]
[403999589,1769705438831,-500.0,0.00013273,2]
[403999590,1769705438841,-500.0,0.00013273,2]
[403999591,1769705438850,-500.0,0.00013273,2]
[403999592,1769705438860,-500.0,0.00013273,2]
[403999593,1769705438869,-500.0,0.00013273,2]
[403999594,1769705438879,-500.0,0.00013273,2]
[403999595,1769705438890,-500.0,0.00013273,2]
[403999596,1769705438901,-500.0,0.00013273,2]
[403999597,1769705438912,-500.0,0.00013273,2]
[403999598,1769705438921,-333.60544809,0.00013273,2]
[403999599,1769705438931,-500.0,0.00013273,2]
[403999600,1769705438940,-500.0,0.00013273,2]
[403999601,1769705438950,-30000.0,0.00013487,2]
[403999602,1769705438960,-445.55,0.00013599,2]
[403999603,1769705438970,-151.0,0.000136,2]
[403999604,1769705438981,-495.42734522,0.00013666,2]
[403999605,1769705438991,-300.0,0.00013673,2]
[403999606,1769705439000,-31616.688186,0.00013674,2]
[403999607,1769705439012,-500.0,0.00013698,2]
[403999608,1769705439022,-500.0,0.00013698,2]
[403999609,1769705439032,-500.0,0.00013698,2]
[403999610,1769705439042,-500.0,0.00013698,2]
[403999611,1769705439052,-500.0,0.00013698,2]
[403999612,1769705439063,-500.0,0.00013698,2]
[403999613,1769705439074,-500.0,0.00013698,2]
[403999614,1769705439085,-500.0,0.00013698,2]
[403999615,1769705439097,-500.0,0.00013698,2]
[403999616,1769705439108,-500.0,0.00013698,2]
[403999617,1769705439119,-17415.4589692,0.00013699,2]
[403999618,1769705439131,-1000.0,0.00013699,2]
[403999619,1769705439142,-476.55877196,0.00013699,2]
[403999620,1769705439154,-500.0,0.00013699,2]
[403999621,1769705439166,-500.0,0.00013699,2]
[403999622,1769705439176,-484.5242166,0.00013699,2]
[403999623,1769705439186,-500.0,0.00013699,2]
[403999624,1769705439196,-500.0,0.00013699,2]
[403999625,1769705439206,-500.0,0.00013699,2]
[403999626,1769705439216,-500.0,0.00013699,2]
[403999627,1769705439225,-500.0,0.00013699,2]
[403999628,1769705439235,-500.0,0.00013699,2]
[403999629,1769705439244,-500.0,0.00013699,2]
[403999630,1769705439253,-500.0,0.00013699,2]
[403999631,1769705439264,-500.0,0.00013699,2]
[403999632,1769705439274,-500.0,0.00013699,2]
[403999633,1769705439284,-301.56130493,0.00013699,2]
[403999634,1769705439293,-352.9452463,0.00013699,2]
[403999635,1769705439303,-281.30708185,0.00013741,2]
[403999636,1769705439313,-5733.14246991,0.0001381,2]
[403999637,1769705439322,-1000.0,0.00013821,2]
[403999638,1769705439331,-1000.0,0.00013821,2]
[403999639,1769705439341,-1000.0,0.00013821,2]
[403999640,1769705439350,-1000.0,0.00013821,2]
[403999641,1769705439359,-592.41079471,0.00013821,2]
[403999642,1769705439368,-1000.0,0.00013821,2]
[403999643,1769705439377,-1000.0,0.00013821,2]
[403999644,1769705439386,-1000.0,0.00013821,2]
[403999645,1769705439395,-1000.0,0.00013821,2]
[403999646,1769705439404,-1000.0,0.00013821,2]
[403999647,1769705439414,-1000.0,0.00013821,2]
[403999648,1769705439424,-1000.0,0.00013821,2]
[403999649,1769705439433,-26719.92441144,0.00014035,2]
[403999650,1769705439608,-4390.07558856,0.00014035,2]
[403999651,1769705439619,-864.0,0.0001419,2]
[403999652,1769705439630,-600.0,0.00014221,2]
[403999653,1769705439641,-433.66109963,0.00014247,2]
[403999654,1769705439652,-1000.0,0.00014247,2]
[403999655,1769705439663,-1000.0,0.00014247,2]
[403999656,1769705439673,-1000.0,0.00014247,2]
[403999657,1769705439682,-444.83278886,0.00014247,2]
[403999658,1769705439691,-1000.0,0.00014247,2]
[403999659,1769705439702,-1000.0,0.00014247,2]
[403999660,1769705439723,-1000.0,0.00014247,2]
[403999661,1769705439739,-1032.3582484,0.00014247,2]
[403999662,1769705439750,-1000.0,0.00014247,2]
[403999663,1769705439762,-1000.0,0.00014247,2]
[403999664,1769705439774,-1008.31156326,0.00014247,2]
[403999665,1769705439785,-500.0,0.00014368,2]
[403999666,1769705439796,-500.0,0.00014368,2]
[403999667,1769705439809,-500.0,0.00014368,2]
[403999668,1769705439820,-1500.0,0.00014368,2]
[403999669,1769705439832,-500.0,0.00014368,2]
[403999670,1769705439843,-500.0,0.00014368,2]
[403999672,1769705439856,-951.8102882,0.00014368,2]
[403999674,1769705439867,-1500.0,0.00014368,2]
[403999675,1769705439879,-500.0,0.00014368,2]
[403999676,1769705439892,-1500.0,0.00014368,2]
[403999677,1769705439907,-994.64238661,0.00014368,2]
[403999714,1769705440533,-505.35761339,0.00014368,2]
[403999716,1769705440545,-1500.0,0.00014368,2]
[403999719,1769705440557,-562.82058661,0.00014393,2]
[403999724,1769705440601,-3225.63166626,0.00014393,2]
[403999727,1769705440612,-160.0,0.00014525,2]
[403999729,1769705440624,-1041.66666667,0.00014525,2]
[403999731,1769705440635,-14390.82997023,0.00014583,2]
[404000060,1769705445319,-500.0,0.00010378,2]
[404000061,1769705445330,-50.68,0.00010378,2]
[404000062,1769705445372,-119.52516509,0.00010378,2]
[404000064,1769705445383,-500.0,0.00010378,2]
[404000065,1769705445393,-500.0,0.00010378,2]
[404000066,1769705445402,-500.0,0.00010378,2]
[404000067,1769705445412,-500.0,0.00010378,2]
[404000068,1769705445422,-500.0,0.00010378,2]
[404000069,1769705445432,-500.0,0.00010378,2]
[404000070,1769705445441,-500.0,0.00010378,2]
[404000071,1769705445452,-500.0,0.00010378,2]
[404000072,1769705445462,-500.0,0.00010378,2]
[404000073,1769705445472,-500.0,0.00010378,2]
[404000074,1769705445482,-500.0,0.00010378,2]
[404000075,1769705445492,-500.0,0.00010378,2]
[404000076,1769705445502,-500.0,0.00010378,2]
[404000077,1769705445513,-500.0,0.00010378,2]
[404000078,1769705445522,-500.0,0.00010378,2]
[404000079,1769705445532,-500.0,0.00010378,2]
[404000080,1769705445542,-500.0,0.00010378,2]
[404000081,1769705445552,-500.0,0.00010378,2]
[404000082,1769705445562,-500.0,0.00010378,2]
[404000083,1769705445571,-500.0,0.00010378,2]
[404000084,1769705445581,-500.0,0.00010378,2]
[404000085,1769705445592,-500.0,0.00010378,2]
[404000086,1769705445602,-500.0,0.00010378,2]
[404000087,1769705445612,-500.0,0.00010378,2]
[404000088,1769705445622,-17870.24002977,0.00014583,2]
[404000089,1769705445632,-900.0,0.00014768,2]
[404000090,1769705445642,-500.0,0.00014795,2]
[404000091,1769705445652,-1500.0,0.00014795,2]
[404000092,1769705445662,-500.0,0.00014795,2]
[404000093,1769705445671,-1500.0,0.00014795,2]
[404000094,1769705445681,-1500.0,0.00014795,2]
[404000095,1769705445691,-1500.0,0.00014795,2]
[404000096,1769705445701,-1500.0,0.00014795,2]
[404000097,1769705445711,-1110.23583249,0.00014795,2]
[404000098,1769705445724,-389.76416751,0.00014795,2]
[404000099,1769705445735,-500.0,0.00014878,2]
[404000100,1769705445745,-151.0,0.000149,2]
[404000101,1769705445756,-182.7321721,0.00014916,2]
[404000102,1769705445766,-1000.0,0.00014916,2]
[404000103,1769705445776,-1000.0,0.00014916,2]
[404000104,1769705445786,-1000.0,0.00014916,2]
[404000105,1769705445796,-1000.0,0.00014916,2]
[404000106,1769705445807,-1386.61765297,0.00014951,2]
[404000107,1769705445817,-168.462041,0.00015068,2]
[404000108,1769705445827,-2598.48509776,0.00015131,2]
[404000109,1769705445839,-508.77317047,0.00015131,2]
[404000111,1769705445851,-2674.60743027,0.00015131,2]
[404000127,1769705446610,-500.0,0.00010378,2]
[404000128,1769705446621,-500.0,0.00010378,2]
[404000129,1769705446631,-1380.15587738,0.00015131,2]
[404000130,1769705446779,-755.78089031,0.00015131,2]
[404000135,1769705494193,500.0,0.00010278,2]
[404000136,1769705494228,500.0,0.00010278,2]
[404000137,1769705494257,500.0,0.00010278,2]
[404000138,1769705494286,500.0,0.00010278,2]
[404000139,1769705494315,500.0,0.00010278,2]
[404000140,1769705494343,500.0,0.00010278,2]
[404000141,1769705494372,500.0,0.00010278,2]
[404000142,1769705494401,500.0,0.00010278,2]
[404000143,1769705494431,500.0,0.00010278,2]
[404000144,1769705494462,500.0,0.00010278,2]
[404000145,1769705494491,500.0,0.00010278,2]
[404000146,1769705494518,500.0,0.00010278,2]
[404000147,1769705494666,500.0,0.00010278,2]
[404000148,1769705494694,500.0,0.00010278,2]
[404000149,1769705494724,500.0,0.00010278,2]
[404000150,1769705494756,500.0,0.00010278,2]
[404000151,1769705494783,500.0,0.00010278,2]
[404000152,1769705494816,500.0,0.00010278,2]
[404000153,1769705494843,500.0,0.00010278,2]
[404000154,1769705494870,500.0,0.00010278,2]
[404000155,1769705494898,0.01,0.00010278,2]
[404000156,1769705494925,499.99,0.00010278,2]
[404000157,1769705494953,500.0,0.00010278,2]
[404000158,1769705494982,500.0,0.00010278,2]
[404000159,1769705495011,500.0,0.00010278,2]
[404000160,1769705495038,500.0,0.00010278,2]
[404000161,1769705495068,500.0,0.00010278,2]
[404000162,1769705495105,500.0,0.00010278,2]
[404000163,1769705495132,500.0,0.00010278,2]
[404000164,1769705495160,500.0,0.00010278,2]
[404000165,1769705495188,500.0,0.00010278,2]
[404000166,1769705495216,500.0,0.00010278,2]
[404000167,1769705495244,500.0,0.00010278,2]
[404000168,1769705495271,500.0,0.00010278,2]
[404000169,1769705495299,500.0,0.00010278,2]
[404000170,1769705495327,500.0,0.00010278,2]
[404000171,1769705495354,500.0,0.00010278,2]
[404000172,1769705495381,500.0,0.00010278,2]
[404000173,1769705495409,500.0,0.00010278,2]
[404000174,1769705495437,500.0,0.00010278,2]
[404000175,1769705495464,500.0,0.00010278,2]
[404000176,1769705495490,0.02,0.00010278,2]
[404000177,1769705495511,499.98,0.00010278,2]
[404000178,1769705495537,500.0,0.00010278,2]
[404000179,1769705495564,500.0,0.00010278,2]
[404000180,1769705495591,500.0,0.00010278,2]
[404000181,1769705495622,500.0,0.00010278,2]
[404000182,1769705495650,500.0,0.00010278,2]
[404000183,1769705495677,500.0,0.00010278,2]
[404000184,1769705495703,500.0,0.00010278,2]
[404000185,1769705495730,500.0,0.00010278,2]
[404000186,1769705495757,500.0,0.00010278,2]
[404000187,1769705495784,500.0,0.00010278,2]
[404000188,1769705495811,500.0,0.00010278,2]
[404000189,1769705495838,500.0,0.00010278,2]
[404000190,1769705495867,500.0,0.00010278,2]
[404000191,1769705495896,500.0,0.00010278,2]
[404000192,1769705495929,500.0,0.00010278,2]
[404000193,1769705495960,500.0,0.00010278,2]
[404000194,1769705495994,500.0,0.00010278,2]
[404000195,1769705496022,500.0,0.00010278,2]
[404000196,1769705496055,500.0,0.00010278,2]
[404000197,1769705496086,0.03,0.00010278,2]
[404000198,1769705496109,499.97,0.00010278,2]
[404000199,1769705496138,500.0,0.00010278,2]
[404000200,1769705496166,523.16648369,0.00010278,2]
[404000201,1769705496194,500.0,0.00010278,2]
[404000202,1769705496223,500.0,0.00010278,2]
[404000203,1769705496251,500.0,0.00010278,2]
[404000204,1769705496278,500.0,0.00010278,2]
[404000205,1769705496310,500.0,0.00010278,2]
[404000206,1769705496341,500.0,0.00010278,2]
[404000207,1769705496370,500.0,0.00010278,2]
[404000208,1769705496398,500.0,0.00010278,2]
[404000209,1769705496475,500.0,0.00010278,2]
[404000210,1769705496508,500.0,0.00010278,2]
[404000211,1769705496534,500.0,0.00010278,2]
[404000212,1769705496564,500.0,0.00010278,2]
[404000213,1769705496591,500.0,0.00010278,2]
[404000214,1769705496617,500.0,0.00010278,2]
[404000215,1769705496644,500.0,0.00010278,2]
[404000216,1769705496670,500.0,0.00010278,2]
[404000217,1769705496696,476.87351631,0.00010278,2]
[404000218,1769705497122,-23.12648369,0.00010278,2]
[404000219,1769705497152,-500.0,0.00010278,2]
[404000220,1769705497180,-506.05607487,0.00010278,2]
[404000221,1769705497210,-500.0,0.00010278,2]
[404000222,1769705497240,-500.0,0.00010278,2]
[404000223,1769705526424,500.0,0.00010278,2]
[404000224,1769705526452,500.0,0.00010278,2]
[404000225,1769705526479,500.0,0.00010278,2]
[404000226,1769705526507,500.0,0.00010278,2]
[404000227,1769705526535,500.0,0.00010278,2]
[404000228,1769705526563,500.0,0.00010278,2]
[404000229,1769705526591,500.0,0.00010278,2]
[404000230,1769705526618,500.0,0.00010278,2]
[404000231,1769705526646,500.0,0.00010278,2]
[404000232,1769705526674,500.0,0.00010278,2]
[404000233,1769705526701,500.0,0.00010278,2]
[404000234,1769705526731,441.64488288,0.00010278,2]
[404000235,1769705526756,58.35511712,0.00010278,2]
[404000237,1769705526785,500.0,0.00010278,2]
[404000239,1769705526812,500.0,0.00010278,2]
[404000241,1769705526841,344.2803438,0.00010278,2]
[404000243,1769705526873,500.0,0.00010278,2]
[404000245,1769705526906,500.0,0.00010278,2]
[404000247,1769705526939,500.0,0.00010278,2]
[404000248,1769705526968,500.0,0.00010278,2]
[404000249,1769705527095,6597.37453908,0.00010179,2]
[404000250,1769705527119,10000.01,0.00010179,2]
[404000251,1769705527144,10000.01,0.00010179,2]
[404000252,1769705527168,10000.01,0.00010179,2]
[404000253,1769705527192,10000.01,0.00010179,2]
[404000254,1769705527218,10000.01,0.00010179,2]
[404000255,1769705527244,10000.01,0.00010179,2]
[404000256,1769705527267,10000.01,0.00010179,2]
[404000262,1769705571004,-4194.39190464,9.877e-05,2]
[404000263,1769705574552,1611.22619072,9.778e-05,2]
[404000264,1769705574573,2583.16571392,9.778e-05,2]
[404000267,1769705596235,5000.0,9.877e-05,2]
[404000268,1769705617867,2416.84428608,9.877e-05,2]
[404000269,1769705617887,2583.15571392,9.877e-05,2]
[404000270,1769705632860,500.0,0.00034668,120]
[404000271,1769705633083,500.0,0.00034668,120]
[404000272,1769705633331,500.0,0.00034668,120]
[404000273,1769705633599,500.0,0.00034668,120]
[404000274,1769705633842,505.99614771,0.00034668,120]
[404000285,1769705808222,749.99,0.00034668,120]
[404000286,1769705808449,749.99,0.00034668,120]
[404000287,1769705808688,749.99,0.00034668,120]
[404000288,1769705808939,749.99,0.00034668,120]
[404000289,1769705809196,749.99,0.00034668,120]
[404000290,1769705809436,749.99,0.00034668,120]
[404000291,1769705809728,749.99,0.00034668,120]
[404000292,1769705809964,749.99,0.00034668,120]
[404000293,1769705810243,749.99,0.00034668,120]
[404000294,1769705810506,749.99,0.00034668,120]
[404000295,1769705810780,749.99,0.00034668,120]
[404000296,1769705811043,749.99,0.00034668,120]
[404000297,1769705811303,749.99,0.00034668,120]
[404000298,1769705811587,749.99,0.00034668,120]
[404000299,1769705811807,749.99,0.00034668,120]
[404000300,1769705812060,749.99,0.00034668,120]
[404000301,1769705812305,749.99,0.00034668,120]
[404000302,1769705812548,749.99,0.00034668,120]
[404000303,1769705812788,749.99,0.00034668,120]
[404000304,1769705813065,749.99,0.00034668,120]
[404000305,1769705813325,749.99,0.00034668,120]
[404000306,1769705813572,749.99,0.00034668,120]
[404000307,1769705813798,749.99,0.00034668,120]
[404000308,1769705814058,750.22880004,0.00034668,120]
[404000309,1769705828928,7416.85428608,9.356e-05,2]
[404000310,1769705828950,2583.14571392,9.356e-05,2]
[404000311,1769705839500,767.4656689,9.356e-05,2]
[404000312,1769705856949,500.0,0.00034668,120]
[404000313,1769705857190,500.0,0.00034668,120]
[404000314,1769705857432,500.0,0.00034668,120]
[404000315,1769705857689,500.0,0.00034668,120]
[404000316,1769705857985,545.45324057,0.00034668,120]
[404000317,1769705883689,-1200.0,0.00010077,2]
[404000318,1769705922239,5000.0,0.00010144,2]
[404000319,1769705930361,5000.0,0.00010144,2]
[404000320,1769705946373,0.01,0.00010144,2]
[404000321,1769705946398,3269.36139778,0.00010144,2]
[404000322,1769705962927,-300.0,0.00010074,2]
[404000323,1769705976191,5000.0,0.00010074,2]
[404000324,1769706009498,-300.0,0.00010074,2]
[404000325,1769706009528,-561.0,0.00010074,2]
[404000326,1769706022125,5000.0,0.00010074,2]
[404000327,1769706041693,-500.0,9.355e-05,2]
[404000328,1769706041894,-500.0,9.355e-05,2]